[Event "FIDE WTC Prel-B 2022"]
[Site "Jerusalem"]
[Date "2022.11.20"]
[Round "2.17"]
[White "Niemann, Hans Moke"]
[Black "Mamedyarov, Shakhriyar"]
[Result "0-1"]
[ECO "C80"]
[WhiteElo "2699"]
[BlackElo "2741"]
[Annotator "TA"]
[PlyCount "114"]
[EventDate "2022.11.20"]
[EventType "team-tourn"]
[EventCountry "ISR"]
[SourceTitle "playchess.com"]
[Source "ChessBase"]
[SourceQuality "1"]
[WhiteTeam "United States"]
[BlackTeam "Azerbaijan"]
[WhiteTeamCountry "USA"]
[BlackTeamCountry "AZE"]
[TimeControl "2700+10"]

{[%evp 17,114,31,29,10,54,41,37,40,44,58,44,45,117,99,98,103,111,106,125,65,67,43,52,57,56,57,25,0,22,0,0,0,0,0,0,0,0,0,0,0,1,-25,-25,-33,-19,-72,-78,-26,-35,-44,0,-134,-47,-216,-211,-202,-33,-286,-302,-354,-352,-366,-355,-573,-543,-573,-573,-524,-550,-565,-224,-247,0,-503,-582,-527,-444,-697,-460,-693,-685,-710,-741,-682,-683,-603,-550,-610,-529,-29978,-29979,-29978,-29979,-29987,-29988,-29988,-29989,-29989,-29990]} 1. e4 {[%emt 0:00:04]} e5 {[%emt 0:00:02]} 2. Nf3 {[%emt 0:00:03]} Nc6 {[%emt 0:00:03]} 3. Bb5 {[%emt 0:00:05]} a6 {[%emt 0:00:03]} 4. Ba4 {[%emt 0:00:03]} Nf6 {[%emt 0:00:03]} 5. O-O {[%emt 0:00:04]} Nxe4 {[%emt 0:00:02]} 6. d4 {[%emt 0:00:03]} b5 {[%emt 0:00:02]} 7. Bb3 {[%emt 0:00:02]} d5 {[%emt 0:00:02]} 8. dxe5 {[%emt 0:00:02]} Be6 {[%emt 0:00:02]} 9. Nbd2 {[%emt 0:00:03]} Nc5 {[%emt 0:00:06]} 10. Qe2 {[%emt 0:00:02] C80: Open Ruy Lopez: Sidelines and 9 Nbd2.} g6 $5 {[%emt 0:03:24][%mdl 4] Leaves trodden paths.} 11. c3 {[%emt 0:04:11]} Bg7 {[%emt 0:00:04]} 12. Nd4 {[%emt 0:00:13] White is slightly better.} Nxe5 {[%emt 0:01:10]} 13. f4 {[%emt 0:00:10]} Ned3 {[%emt 0:03:09]} 14. f5 $1 {[%emt 0:02:42][%mdl 64] Pin} Nxc1 $5 {[%emt 0:03:03][%mdl 4] Leaves trodden paths.} ({Better is} 14... gxf5 $14 15. Nxf5 Rg8) 15. Raxc1 $16 {[%emt 0:00:29]} (15. Rfxc1 $6 gxf5 16. Nxf5 Rg8 $11) 15... gxf5 {[%emt 0:00:02]} 16. Nxf5 {[%emt 0:00:31] [#]} Bf6 $146 {[%emt 0:01:30]} ({Predecessor:} 16... Rg8 17. Bc2 Kd7 18. Qe3 Qf8 19. b4 Nb7 20. Nb3 a5 21. Bd3 axb4 22. cxb4 Rxa2 23. Kh1 Bh8 24. Qf4 Qd8 25. Bxb5+ Kc8 26. Rf2 {1-0 (26) Siebel,D (1945)-Herzog,K (1869) GER email 2014}) 17. Bc2 {[%emt 0:01:44]} (17. Qe3 Nxb3 18. Nxb3 O-O $14) 17... Nd7 {[%emt 0:04:31]} 18. Nd4 {[%emt 0:10:07] Pair of Knights!} ({White should play} 18. Nb3 $1 $16) 18... Qe7 $1 $14 {[%emt 0:01:58]} 19. Rce1 {[%emt 0:00:58][%cal Rd4e6]} Bxd4+ {[%emt 0:02:29]} 20. cxd4 {[%emt 0:00:09]} O-O-O {[%emt 0:00:05][%cal Ba8d8,Bd8g8,Bg8g4][%mdl 32]} 21. Nb3 {[%emt 0:03:14]} Qd6 {[%emt 0:04:21]} 22. a4 {[%emt 0:05:15]} bxa4 {[%emt 0:00:15]} 23. Na5 {[%emt 0:00:06]} Qb6 {[%emt 0:01:30]} 24. Qd2 {[%emt 0:00:04]} Rdg8 $1 {[%emt 0:00:42]} (24... Qxb2 25. Rb1 Qa3 26. Qe2 $18) 25. Bxa4 {[%emt 0:00:44]} Rg4 $1 {[%emt 0:00:14]} 26. Nc6 {[%emt 0:02:44] Threatens to win with Re3.} Nb8 {[%emt 0:09:44]} 27. h3 {[%emt 0:00:11]} Nxc6 {[%emt 0:01:16]} 28. hxg4 {[%emt 0:00:05] Hoping for Bxc6.} Nxd4 {[%emt 0:01:02] And now ...Nf3+ would win.} 29. Qe3 {[%emt 0:00:46] Against Nf3+} Rg8 {[%emt 0:00:49][%cal Bh8g8,Bg8g4,Bg4e4][%mdl 32]} 30. Bd1 {[%emt 0:00:40]} Bxg4 {[%emt 0:01:02]} 31. Rf2 {[%emt 0:05:08]} (31. Kh1 $1 $11 {remains equal.}) 31... Bxd1 {[%emt 0:01:00]} 32. Rxd1 {[%emt 0:09:48]} Rg4 {[%emt 0:00:03]} (32... c5 33. Qe7 Qc7 34. Rxf7 Nf3+ 35. Kf1 Qxe7 36. Rxe7 $16) 33. Rd3 $1 {[%emt 0:00:00]} Re4 {[%emt 0:01:27]} 34. Qh3+ {[%emt 0:00:00] [#]} (34. Qg5 $11 Qe6 35. Qf6 (35. Qg8+ Kb7 $11)) 34... Kb7 {[%emt 0:01:01]} (34... f5 $1 $17 35. Qxh7 Re1+ 36. Kh2 Qd6+ 37. g3 Qe5 38. Rxd4 Qxd4 39. Qxf5+ Kb7) 35. Re3 $2 {[%emt 0:00:00] Prevents Re1+.} (35. Qd7 $1 $15 Qe6 36. Qxe6 (36. Rxf7 $2 Re1+ 37. Kh2 Qe5+ 38. Rg3 Ne2 $19) 36... fxe6 37. Rh3) 35... f5 $19 {[%emt 0:00:34] ...f4 is the strong threat.} 36. Kh1 {[%emt 0:00:00]} Nb5 $2 {[%emt 0:01:51]} (36... Qc5 $19 {aiming for ...Qc1+.} 37. Rxe4 Qc1+ 38. Kh2 dxe4) 37. Rxe4 $4 {[%emt 0:00:00][%mdl 8192]} (37. Ref3 $1 $15) 37... fxe4 $15 {[%emt 0:00:17][%mdl 4096] Endgame KQR-KQN} ({Weaker is} 37... Qxf2 38. Re5 $15) 38. Rf8 {[%emt 0:00:00]} Nd6 {[%emt 0:00:26]} 39. Qxh7 {[%emt 0:00:00]} Qxb2 {[%emt 0:00:31]} 40. Qg8 $2 {[%emt 0:00:00]} (40. Rf1 {was worth a try.}) 40... Qa1+ $19 {[%emt 0:00:12]} 41. Kh2 {[%emt 0:00:00]} Qe5+ {[%emt 0:00:01]} 42. Qg3 {[%emt 0:00:00]} Qh5+ {[%emt 0:00:01]} 43. Kg1 {[%emt 0:00:00]} Qd1+ {[%emt 0:00:40]} (43... d4 44. Rf1 Qc5) 44. Kh2 {[%emt 0:00:00]} Qh5+ $2 {[%emt 0:00:19]} (44... Qd3 45. Qe5 Kc6) 45. Kg1 {[%emt 0:00:00] [#]} d4 $1 {[%emt 0:00:03] Prevents Qc3.} ({Don't go for} 45... Qd1+ $2 46. Rf1 Qd4+ 47. Kh2 $19) 46. Rf1 {[%emt 0:00:00]} Qc5 {[%emt 0:00:23]} 47. Rb1+ {[%emt 0:00:00]} (47. Qf2 $142 Kc6 48. Ra1) 47... Ka7 {[%emt 0:00:05]} 48. Qf2 {[%emt 0:00:00]} (48. Re1 $142 e3 49. Qf4) 48... Nb5 {[%emt 0:00:16]} 49. Ra1 {[%emt 0:00:00]} Nc3 {[%emt 0:00:31]} 50. g4 {[%emt 0:00:13]} e3 {[%emt 0:00:22]} 51. Qf6 {[%emt 0:00:11]} Qc4 {[%emt 0:00:34]} 52. Qe5 {[%emt 0:00:16]} e2 {[%emt 0:00:09]} 53. g5 {[%emt 0:00:52]} d3 {[%emt 0:00:03] Black mates.} 54. Qe3+ {[%emt 0:00:15]} Kb7 {[%emt 0:00:05]} 55. Qf3+ {[%emt 0:00:12]} Ne4 {[%emt 0:00:20]} 56. Rb1+ {[%emt 0:00:04]} Kc6 {[%emt 0:00:02]} 57. Qf8 {[%emt 0:00:23]} Qc5+ {[%emt 0:00:10] Weighted Error Value: White=0.47/Black=0.28 (precise)} 0-1

[Event "FIDE WTC Prel-B 2022"]
[Site "Jerusalem"]
[Date "2022.11.20"]
[Round "2.18"]
[White "Radjabov, Teimour"]
[Black "Bruzon Batista, Lazaro"]
[Result "1-0"]
[ECO "E20"]
[WhiteElo "2747"]
[BlackElo "2615"]
[Annotator "TA"]
[PlyCount "85"]
[EventDate "2022.11.20"]
[EventType "team-tourn"]
[EventCountry "ISR"]
[SourceTitle "playchess.com"]
[Source "ChessBase"]
[SourceQuality "1"]
[WhiteTeam "Azerbaijan"]
[BlackTeam "United States"]
[WhiteTeamCountry "AZE"]
[BlackTeamCountry "USA"]
[TimeControl "2700+10"]

{[%evp 14,85,20,19,29,27,23,20,22,29,27,14,32,6,18,20,49,45,126,39,39,37,40,31,26,22,34,33,31,23,42,39,51,35,38,18,77,67,83,76,130,103,112,102,179,166,206,208,261,263,249,260,341,241,248,254,415,407,385,410,386,403,410,393,403,390,406,372,882,868,1568,1439,1314,1263]} 1. d4 {[%emt 0:00:02]} Nf6 {[%emt 0:00:04]} 2. c4 {[%emt 0:00:02]} e6 {[%emt 0:00:02]} 3. Nc3 {[%emt 0:00:02]} Bb4 {[%emt 0:00:10]} 4. g3 {[%emt 0:00:02]} c5 {[%emt 0:01:15]} 5. Nf3 {[%emt 0:00:06]} Nc6 {[%emt 0:00:11]} 6. Bg2 {[%emt 0:01:05]} Ne4 {[%emt 0:02:46]} 7. Bd2 {[%emt 0:02:49]} Nxd2 {[%emt 0:00:08]} 8. Qxd2 {[%emt 0:00:01]} cxd4 {[%emt 0:00:06] E20: Nimzo-Indian: 4 g3 and 4 f3.} 9. Nxd4 {[%emt 0:00:02]} O-O {[%emt 0:00:04]} 10. O-O {[%emt 0:01:01]} Ne5 {[%emt 0:00:23] The position is equal.} 11. b3 {[%emt 0:00:29]} a6 {[%emt 0:00:07]} 12. Rfd1 {[%emt 0:01:47]} Qa5 {[%emt 0:02:04]} 13. Rac1 {[%emt 0:00:19][%cal Oa2a3]} Rb8 {[%emt 0:04:04]} 14. Qe3 {[%emt 0:08:26][%cal Oa2a3]} f6 {[%emt 0:06:05] [#]} 15. a3 $146 {[%emt 0:14:17]} ({Predecessor:} 15. a4 b6 16. h3 Bb7 17. Bxb7 Rxb7 18. Ne4 Rc7 19. Nf3 Nxf3+ 20. Qxf3 Qe5 21. Qd3 {1-0 (46) Stocek,J (2545)-Kristjansson,S (2403) Plovdiv 2003}) 15... Be7 {[%emt 0:00:39] [#]} (15... Bxc3 $14 16. Qxc3 (16. Rxc3 Qxa3 17. Nc2 Qa5 $11) 16... Qxa3) 16. Ne4 {[%emt 0:00:55] White is more active.} (16. b4 $1 $16 {[%cal Rb4a5]} Qxa3 17. Nc2) 16... f5 $14 {[%emt 0:03:13]} 17. b4 {[%emt 0:00:23]} Qc7 {[%emt 0:00:02]} 18. Nd2 {[%emt 0:04:51]} Ng4 {[%emt 0:03:17]} 19. Qc3 {[%emt 0:01:10]} b6 {[%emt 0:02:09]} 20. c5 {[%emt 0:01:01]} bxc5 {[%emt 0:00:54]} 21. bxc5 {[%emt 0:00:01]} Rf7 {[%emt 0:02:10]} 22. e3 {[%emt 0:01:05]} Nf6 {[%emt 0:02:07]} 23. Qa1 {[%emt 0:02:34]} g6 {[%emt 0:03:30]} 24. N4f3 {[%emt 0:00:48]} Rb5 {[%emt 0:02:28]} (24... Rf8 $11) 25. Ne5 $16 {[%emt 0:00:40] White leaves nothing to chance now.} Rf8 {[%emt 0:00:03]} 26. Nd3 {[%emt 0:00:14]} Ne8 {[%emt 0:02:55]} ({Better is} 26... Rb8) 27. a4 {[%emt 0:00:36][%cal Ba3a4,Ba4a5][%mdl 32]} Rb8 {[%emt 0:00:12]} 28. Nc4 {[%emt 0:01:05]} Bf6 {[%emt 0:02:47]} (28... a5 $16 {was necessary.}) 29. Qa2 $18 {[%emt 0:00:14]} Kh8 {[%emt 0:01:03]} 30. a5 {[%emt 0:00:31]} Bg7 {[%emt 0:02:16]} 31. Nb6 {[%emt 0:00:27]} Nf6 {[%emt 0:00:35]} 32. Nb4 {[%emt 0:00:03][%cal Bd3b4,Bb4c6,Bc6d4,Bd4e6][%mdl 32]} Bb7 {[%emt 0:01:13]} 33. c6 {[%emt 0:01:39]} dxc6 {[%emt 0:00:04]} 34. Nxc6 {[%emt 0:00:03]} ({But not} 34. Bxc6 $6 Rbd8 35. Rxd8 (35. Qxe6 Rxd1+ 36. Rxd1 Bxc6 $16) 35... Rxd8 36. Qxe6 Ne4) 34... Rbe8 {[%emt 0:00:34]} (34... Bxc6 {was called for.} 35. Rxc6 Qe5 36. Rxe6 (36. Qxe6 Qxa5 37. Nc8 Qa4 $16) 36... Qc5) 35. Nd4 {[%emt 0:00:09][%csl LRc7,LRe6] Pair of Knights!} Qf7 {[%emt 0:00:12]} 36. Bxb7 {[%emt 0:00:03]} Qxb7 {[%emt 0:00:01]} 37. Nxe6 {[%emt 0:00:02]} Qf7 {[%emt 0:00:22]} 38. Rc6 {[%emt 0:00:01]} Re7 {[%emt 0:00:35]} 39. Qc4 {[%emt 0:01:05]} Rfe8 {[%emt 0:00:16][%cal Re7e6]} 40. Rd8 {[%emt 0:00:19]} Ng4 $2 {[%emt 0:00:21] [#]} (40... Rxd8 41. Nxd8 Qxc4 42. Nxc4 Kg8 43. Rxa6 Rc7) 41. Rcc8 $1 {[%emt 0:00:30] White is clearly winning.} Ne5 {[%emt 0:00:19]} (41... Qg8 42. Qc6) 42. Qa4 {[%emt 0:00:46]} Rxd8 {[%emt 0:00:12]} 43. Rxd8+ {[%emt 0:00:01] Weighted Error Value: White=0.11 (very precise) /Black=0.24 (precise)} 1-0

[Event "FIDE WTC Prel-B 2022"]
[Site "Jerusalem"]
[Date "2022.11.20"]
[Round "2.19"]
[White "Onischuk, Alexander"]
[Black "Guseinov, Gadir"]
[Result "1/2-1/2"]
[ECO "E92"]
[WhiteElo "2640"]
[BlackElo "2661"]
[Annotator "TA"]
[PlyCount "39"]
[EventDate "2022.11.20"]
[EventType "team-tourn"]
[EventCountry "ISR"]
[SourceTitle "playchess.com"]
[Source "ChessBase"]
[SourceQuality "1"]
[WhiteTeam "United States"]
[BlackTeam "Azerbaijan"]
[WhiteTeamCountry "USA"]
[BlackTeamCountry "AZE"]
[TimeControl "2700+10"]

{[%evp 15,39,43,66,50,62,58,54,45,49,53,78,71,70,35,33,33,45,0,0,-19,-26,-10,0,-26,0,-25]} 1. d4 {[%emt 0:00:03]} Nf6 {[%emt 0:00:03]} 2. c4 {[%emt 0:00:02]} g6 {[%emt 0:00:01]} 3. Nc3 {[%emt 0:00:03]} Bg7 {[%emt 0:00:01]} 4. e4 {[%emt 0:00:04]} d6 {[%emt 0:00:03]} 5. Nf3 {[%emt 0:00:04]} O-O {[%emt 0:00:03]} 6. Be2 {[%emt 0:00:05]} e5 {[%emt 0:00:05]} 7. Be3 {[%emt 0:00:10]} c6 {[%emt 0:00:25]} 8. d5 {[%emt 0:01:14]} Na6 {[%emt 0:00:48]} 9. Nd2 {[%emt 0:00:48] E92: King's Indian: Classical: 6 Be2 e5: 7 dxe5, 7 Be3 and Petrosian System without 7...Nbd7.} Ne8 {[%emt 0:45:11]} 10. O-O {[%emt 0:03:07]} f5 {[%emt 0:00:00] [#] And now ...f4 would win.} 11. exf5 {[%emt 0:01:59] White is slightly better.} gxf5 {[%emt 0:00:00] Threatens to win with ...f4.} 12. f4 {[%emt 0:00:26] [#]} exf4 $146 {[%emt 0:00:00]} ({Predecessor:} 12... c5 13. a3 b6 14. Rb1 Bd7 15. Qc2 Kh8 16. Kh1 Qe7 17. Rbe1 Nac7 18. b4 exf4 19. Bxf4 {½-½ (32) Schreiner,P (2463)-Kranzl,P (2162) Austria 2017}) 13. Rxf4 {[%emt 0:00:47]} Bh6 {[%emt 0:00:00]} 14. Kh1 {[%emt 0:04:19] White is more active.} Bxf4 {[%emt 0:00:00]} 15. Bxf4 {[%emt 0:00:04]} Qh4 {[%emt 0:00:00]} 16. Qf1 {[%emt 0:07:20][%mdl 1024] White has compensation.} (16. g3 $5 {[%cal Rg3h4]} Qf6 17. Nb3 $11) 16... Nc5 {[%emt 0:00:00]} 17. Bg3 {[%emt 0:06:10] This bishop pair is nice.} Qh6 {[%emt 0:00:00]} 18. Bf4 {[%emt 0:00:39]} Qh4 {[%emt 0:00:00]} 19. Bg3 {[%emt 0:03:05]} Qh6 {[%emt 0:00:00]} (19... Qg5 $5 {[%cal Rg5d2]} 20. Bf4 Qg6 $11) 20. Bf4 {[%emt 0:00:43] Weighted Error Value: White=0.15 (very precise) /Black=0.10 (very precise)} 1/2-1/2

[Event "FIDE WTC Prel-B 2022"]
[Site "Jerusalem"]
[Date "2022.11.20"]
[Round "2.20"]
[White "Asadli, Vugar"]
[Black "Quesada Perez, Yuniesky"]
[Result "1/2-1/2"]
[ECO "C67"]
[WhiteElo "2567"]
[BlackElo "2583"]
[Annotator "TA"]
[PlyCount "83"]
[EventDate "2022.11.20"]
[EventType "team-tourn"]
[EventCountry "ISR"]
[SourceTitle "playchess.com"]
[Source "ChessBase"]
[SourceQuality "1"]
[WhiteTeam "Azerbaijan"]
[BlackTeam "United States"]
[WhiteTeamCountry "AZE"]
[BlackTeamCountry "USA"]
[TimeControl "2700+10"]

{[%evp 9,83,15,14,0,27,0,12,0,5,4,7,14,13,0,41,24,15,13,28,29,35,41,31,22,25,20,20,20,25,19,22,0,16,-783,7,6,18,15,19,13,16,12,13,10,11,8,9,0,13,14,0,0,1,1,5,4,18,4,18,4,6,0,0,0,0,0,0,0,0,0,0,0,0,0,0,0]} 1. e4 {[%emt 0:00:03]} e5 {[%emt 0:00:02]} 2. Nf3 {[%emt 0:00:04]} Nc6 {[%emt 0:00:03]} 3. Bb5 {[%emt 0:00:05]} Nf6 {[%emt 0:00:18][%cal Bg8f6,Bf6e4,Be4d6][%mdl 32]} 4. O-O {[%emt 0:00:11]} Nxe4 {[%emt 0:00:06]} 5. Re1 {[%emt 0:00:07]} Nd6 {[%emt 0:00:05]} 6. Bf1 {[%emt 0:00:08] C67: Ruy Lopez: Berlin Defence: 4 0-0 Nxe4.} Be7 {[%emt 0:00:59] [#] Strongly threatening ...e4.} 7. Nc3 {[%emt 0:00:09] Inhibits e4.} O-O {[%emt 0:01:20]} 8. d4 {[%emt 0:00:22]} e4 {[%emt 0:01:33]} 9. Nxe4 {[%emt 0:00:05]} Nxe4 {[%emt 0:00:02]} 10. Rxe4 {[%emt 0:00:02]} d5 {[%emt 0:00:14]} 11. Re1 {[%emt 0:00:04]} Bf5 {[%emt 0:01:08] [#]} 12. Bd3 $146 {[%emt 0:01:37]} ({Predecessor:} 12. c3 Be4 13. g3 Bf6 14. Nd2 Bf5 15. Bg2 Ne7 16. Nf1 Nc8 17. h4 c6 18. Bf4 {1-0 (73) Clarke,B (2445)-Fischer,D (2367) Hamburg 2022}) 12... Bxd3 {[%emt 0:03:36]} 13. Qxd3 {[%emt 0:00:02]} Qd7 {[%emt 0:00:03]} 14. Bf4 {[%emt 0:02:37]} (14. c3 {looks sharper.} Bd6 15. Ng5 g6 16. Qh3) 14... Rfe8 {[%emt 0:05:38]} 15. c3 {[%emt 0:04:53]} a6 {[%emt 0:06:38]} 16. h4 {[%emt 0:01:50]} h6 {[%emt 0:00:19]} 17. g3 {[%emt 0:02:48]} Bd6 {[%emt 0:00:50]} 18. Bxd6 {[%emt 0:01:22]} Qxd6 {[%emt 0:00:02]} 19. Kg2 {[%emt 0:02:48]} Qd7 {[%emt 0:01:04]} 20. Nh2 {[%emt 0:05:07]} Rxe1 {[%emt 0:04:14]} 21. Rb1 {[%emt 0:24:16][%mdl 8192] [#]} (21. Rxe1 $11 Re8 22. Rxe8+ Qxe8 23. Qf3) 21... Rd1 $2 22. Rxd1 {[%emt 0:00:00] The position is equal.} Rd8 {[%emt 0:20:36]} 23. Re1 Re8 {[%emt 0:00:00]} 24. Rxe8+ {[%emt 0:00:00]} Qxe8 $11 {[%emt 0:00:00][%mdl 4096] Endgame KQN-KQN} 25. Qf5 {[%emt 0:00:00]} Ne7 {[%emt 0:00:00]} 26. Qe5 {[%emt 0:00:00]} Qd7 {[%emt 0:00:00]} 27. h5 {[%emt 0:00:00]} f6 {[%emt 0:00:00]} 28. Qf4 {[%emt 0:00:00]} Nc8 {[%emt 0:00:00]} 29. Ng4 {[%emt 0:00:00]} Nd6 {[%emt 0:00:00]} 30. Ne3 {[%emt 0:00:00]} Qe6 {[%emt 0:00:00]} 31. g4 {[%emt 0:00:00]} c6 {[%emt 0:00:00]} 32. f3 {[%emt 0:00:00]} Kf7 {[%emt 0:00:00]} 33. Kf2 {[%emt 0:00:00]} Ke7 {[%emt 0:00:00]} 34. a4 {[%emt 0:00:00]} a5 {[%emt 0:00:00]} 35. b3 {[%emt 0:00:00][%cal Oc3c4]} Kd7 {[%emt 0:00:00]} 36. Ke2 {[%emt 0:00:00]} b5 {[%emt 0:00:00]} 37. Kd3 {[%emt 0:00:00]} bxa4 {[%emt 0:00:00]} 38. bxa4 {[%emt 0:00:00]} Qe8 {[%emt 0:00:00]} 39. Kc2 {[%emt 0:00:00]} Qe6 {[%emt 0:00:00]} 40. Kd3 {[%emt 0:00:00]} Qe8 {[%emt 0:00:00]} 41. Kc2 {[%emt 0:00:00]} Qe6 {[%emt 0:00:00]} 42. Kd3 {[%emt 0:00:00] Weighted Error Value: White=0.20 (precise) /Black=0.24 (precise)} 1/2-1/2

[Event "FIDE WTC Prel-B 2022"]
[Site "Jerusalem"]
[Date "2022.11.20"]
[Round "2.21"]
[White "Vidit, Santosh Gujrathi"]
[Black "Wojtaszek, Radoslaw"]
[Result "1/2-1/2"]
[ECO "D38"]
[WhiteElo "2724"]
[BlackElo "2686"]
[Annotator "TA"]
[PlyCount "145"]
[EventDate "2022.11.20"]
[EventType "team-tourn"]
[EventCountry "ISR"]
[SourceTitle "playchess.com"]
[Source "ChessBase"]
[SourceQuality "1"]
[WhiteTeam "India"]
[BlackTeam "Poland"]
[WhiteTeamCountry "IND"]
[BlackTeamCountry "POL"]
[TimeControl "2700+10"]

{[%evp 11,145,23,30,15,12,11,12,0,0,-15,-10,-12,-13,-9,-12,-8,-2,-3,-6,0,-6,-8,0,0,0,0,17,0,0,0,0,0,11,0,21,21,27,25,11,13,18,14,27,10,10,16,24,11,129,131,145,136,137,135,166,165,164,151,149,138,188,165,191,150,191,198,199,185,192,172,183,89,118,113,115,115,169,187,178,142,147,146,131,72,74,74,74,80,81,20,56,64,467,202,581,100,100,35,33,37,36,31,191,184,161,62,57,15,18,18,18,0,8,8,8,8,36,35,33,-53,0,0,0,0,0,0,8,0,0,0,0,0,8,8,8,8]} 1. d4 {[%emt 0:00:15]} Nf6 {[%emt 0:00:02]} 2. c4 {[%emt 0:00:02]} e6 {[%emt 0:00:02]} 3. Nf3 {[%emt 0:00:03]} d5 {[%emt 0:00:02]} 4. Nc3 {[%emt 0:00:05]} Bb4 {[%emt 0:00:03]} 5. Qa4+ {[%emt 0:00:04]} Nc6 {[%emt 0:00:03]} 6. e3 {[%emt 0:00:02]} O-O {[%emt 0:00:11]} 7. Qc2 {[%emt 0:00:02] D38: Queen's Gambit Declined: Ragozin Defence (4 Nf3 Bb4).} Ne7 {[%emt 0:00:17]} 8. Bd2 {[%emt 0:00:26]} b6 {[%emt 0:00:22]} 9. cxd5 {[%emt 0:01:25]} exd5 {[%emt 0:02:47]} 10. a3 {[%emt 0:00:24]} Bf5 {[%emt 0:00:48]} 11. Bd3 {[%emt 0:00:02]} Bxd3 {[%emt 0:00:06]} 12. Qxd3 {[%emt 0:00:02]} Bd6 {[%emt 0:00:20] [#]} 13. Nb5 $146 {[%emt 0:00:33]} ({Predecessor:} 13. O-O c6 14. Rac1 a5 15. e4 dxe4 16. Nxe4 Nxe4 17. Qxe4 f6 18. Qe6+ Rf7 19. Rfe1 {½-½ (44) Abdulla,A (2488)-Hammer,J (2651) Baku 2016}) 13... c5 {[%emt 0:02:08]} 14. Nxd6 {[%emt 0:00:45]} Qxd6 {[%emt 0:00:03]} 15. dxc5 {[%emt 0:00:52]} bxc5 {[%emt 0:00:02]} 16. O-O {[%emt 0:00:04]} a5 {[%emt 0:03:36]} 17. Bc3 {[%emt 0:03:25]} Ne4 {[%emt 0:00:30]} 18. Nd2 {[%emt 0:03:59]} Nxc3 {[%emt 0:02:50]} 19. bxc3 {[%emt 0:02:36]} Rfd8 {[%emt 0:04:53]} 20. Rfd1 {[%emt 0:00:02]} h6 {[%emt 0:03:06]} 21. Rab1 {[%emt 0:02:52]} Qc6 {[%emt 0:03:52]} 22. h3 {[%emt 0:05:00]} c4 {[%emt 0:02:33]} (22... Qa4 $5 {[%cal Rc5c4]}) 23. Qc2 {[%emt 0:01:27]} Rab8 {[%emt 0:00:45]} 24. a4 {[%emt 0:01:21]} g6 {[%emt 0:04:00]} 25. Nf3 {[%emt 0:04:17]} Nf5 {[%emt 0:00:02]} 26. g4 {[%emt 0:05:41]} Ne7 {[%emt 0:00:43]} 27. Nd4 {[%emt 0:00:07]} Qf6 {[%emt 0:03:12]} 28. Rxb8 {[%emt 0:00:21]} Rxb8 {[%emt 0:00:03]} 29. Rb1 {[%emt 0:00:01]} Ra8 {[%emt 0:03:40]} (29... Rb6 $11) 30. Rb5 $16 {[%emt 0:00:44]} h5 {[%emt 0:00:04]} 31. Qe2 {[%emt 0:00:22]} hxg4 {[%emt 0:00:02]} 32. hxg4 {[%emt 0:00:09]} (32. Qxg4 Kg7 $16) 32... Qd6 {[%emt 0:01:20]} 33. Qf3 {[%emt 0:01:00]} Kg7 {[%emt 0:01:21]} 34. Qf4 {[%emt 0:00:55]} Qxf4 {[%emt 0:00:52]} 35. exf4 {[%emt 0:00:01][%mdl 4096] Endgame KRN-KRN} Kf8 {[%emt 0:01:47]} (35... Nc8 $16 {keeps fighting.} 36. f5 (36. Rxd5 Nb6 $15) 36... Ra7 37. fxg6 (37. Rxd5 Nb6 $16) 37... fxg6) 36. Kg2 {[%emt 0:00:39]} Ke8 {[%emt 0:00:01]} 37. Kf3 {[%emt 0:01:47]} Ra6 {[%emt 0:00:03]} 38. Rb8+ {[%emt 0:01:09]} Kd7 {[%emt 0:00:01]} 39. Rb7+ {[%emt 0:00:02]} Ke8 {[%emt 0:00:12]} 40. Ke3 $1 {[%emt 0:00:48]} Nc8 {[%emt 0:00:18]} 41. Nb5 {[%emt 0:00:56]} (41. f3 $18 {has better winning chances.}) 41... Rb6 {[%emt 0:00:32]} 42. Rc7 {[%emt 0:00:36]} Re6+ {[%emt 0:00:01]} 43. Kd2 {[%emt 0:03:30] White is more active.} Nb6 {[%emt 0:01:24]} (43... Ne7 $16 {was necessary.}) 44. Ra7 $18 {[%emt 0:00:48] Black must now prevent Nc7+.} Rf6 {[%emt 0:00:10]} 45. Rxa5 {[%emt 0:00:34] aiming for Ke3.} Rxf4 {[%emt 0:00:06]} 46. Ra6 $1 {[%emt 0:00:09]} Nc8 {[%emt 0:00:14]} (46... Rxf2+ $2 47. Ke3 Rf6 48. a5 $18) 47. Nc7+ {[%emt 0:00:30]} (47. Ke3 $142 $1 {[%cal Re3f4]} Re4+ 48. Kf3) 47... Kd7 $16 {[%emt 0:00:09]} 48. Nxd5 {[%emt 0:00:02]} Rxf2+ {[%emt 0:00:20]} 49. Ke3 {[%emt 0:00:01]} Rg2 {[%emt 0:00:58]} 50. a5 {[%emt 0:00:25]} (50. Nf6+ $16 Kc7 51. Kd4) 50... g5 {[%emt 0:01:17]} 51. Rh6 {[%emt 0:02:00]} Nd6 $2 {[%emt 0:00:16][%mdl 8192]} (51... Rg3+ $14 52. Kd4 Rxg4+ 53. Kc5 Rg2) 52. a6 {[%emt 0:00:11]} (52. Nb6+ $142 Kc7 53. Nd5+ Kc6 54. Kf3) 52... Ra2 $2 {[%emt 0:00:02]} (52... Nc8 53. Kd4 Rxg4+ 54. Kc5 Rg1) 53. Nb4 $2 {[%emt 0:00:02]} (53. Nb6+ $1 $18 {is the precise move to win.} Kc7 54. Rxd6 $1 (54. Nd5+ Kd7 $16)) 53... Ra5 {[%emt 0:00:19]} 54. Kd4 {[%emt 0:00:04]} (54. Rh5 $16) 54... f5 $14 {[%emt 0:00:01]} 55. Rh7+ {[%emt 0:00:06]} Ke6 {[%emt 0:00:01]} 56. gxf5+ {[%emt 0:00:07]} Kxf5 $2 {[%emt 0:00:10] [#]} ({Black should play} 56... Nxf5+ $14 57. Kxc4 g4) 57. Rh6 $1 $18 {[%emt 0:00:12]} Ne8 {[%emt 0:01:15] [#]} 58. Rc6 {[%emt 0:00:25]} (58. Nc6 $1 $18 {[%cal Rc6a5]} Ra2 59. a7 (59. Kxc4 g4 $16)) 58... g4 $14 {[%emt 0:00:01][%cal Bg5g4,Bg4g3][%mdl 32]} 59. Nd5 {[%emt 0:00:14] Strongly threatening Rc5.} ({Resist} 59. Rxc4 Ra3 $16) 59... g3 {[%emt 0:00:16][%cal Oa5d5] ...Rxd5+! is the strong threat.} 60. Ne3+ {[%emt 0:00:10]} Kf4 {[%emt 0:00:09]} 61. Re6 {[%emt 0:00:14]} ({Not} 61. Nxc4 $2 g2 62. Nxa5 (62. Rg6 $2 Rg5 $19) 62... g1=Q+ 63. Kc4 Qg7 $19) 61... Nc7 {[%emt 0:00:15]} 62. Rf6+ {[%emt 0:00:02]} Kg5 {[%emt 0:00:04]} 63. Rf3 {[%emt 0:00:03]} Rxa6 {[%emt 0:00:18]} 64. Rxg3+ {[%emt 0:00:08]} Kf4 {[%emt 0:00:02]} 65. Rg1 {[%emt 0:00:28]} (65. Rh3 $14) 65... Nb5+ {[%emt 0:00:08]} (65... Ne6+ $15 66. Kxc4 Kxe3) 66. Kxc4 $11 {[%emt 0:00:02] The position is equal.} Nxc3 {[%emt 0:00:02]} 67. Re1 {[%emt 0:00:15]} Rc6+ {[%emt 0:00:07]} 68. Kd3 {[%emt 0:00:02]} Rc8 {[%emt 0:00:11]} 69. Nc4 {[%emt 0:00:10]} Nd5 {[%emt 0:00:08]} 70. Re4+ {[%emt 0:00:03]} Kg3 {[%emt 0:00:02]} 71. Nd6 {[%emt 0:00:13]} Nf4+ {[%emt 0:00:12] [#]} 72. Rxf4 $1 {[%emt 0:00:08]} Kxf4 {[%emt 0:00:58]} 73. Nxc8 {Weighted Error Value: White=0.28 (precise) /Black=0.37} 1/2-1/2